Cogmind - Beta 16.1 @@@ ROGUE MODE // 2026.05.01 @ 01:49:13 Player: shapeshifter Result: Smashed by cave-in Performance ------------- Evolutions (0) 0 Regions Visited (3) 600 Robots Destroyed (28) 140 Value Destroyed (759) 759 Prototype IDs (13) 260 Alien Tech Used (0) 0 Bonus (0) 0 TOTAL SCORE: 1759 Bonus ------- None Cogmind --------- Core Integrity 0/250 Matter 12/300 Energy 100/100 System Corruption 5% Temperature Cool (0) Movement Treading (160) Location -10/Subcaves Parts ------- > --- POWER (1) -------- Subdweller Power Source > --- PROPULSION (2) --- Light Treads Subdweller Monowheel > --- UTILITY (2) ------ (None) > --- WEAPON (2) ------- Flak Cannon Slug Cannon > --- INVENTORY (5) ---- 1B-0RG's Assimilator Peak State ------------ > --- POWER ------------ Subdweller Power Source > --- PROPULSION ------- Light Treads Subdweller Monowheel > --- UTILITY ---------- Rainbow Chip > --- WEAPON ----------- Flak Cannon Slug Cannon > --- INVENTORY -------- 1B-0RG's Assimilator [Rating: 31] Favorites ----------- Power Subdweller Power Source Engine Subdweller Power Source Propulsion Light Treads Treads Light Treads Wheel Subdweller Monowheel Utility Scrap Shield Device Cobbler Unit Storage Small Storage Unit Processor Rainbow Chip Protection Scrap Shield Weapon Flak Cannon Energy Gun Medium Laser Energy Cannon Ion Cannon Ballistic Gun Battle Rifle Ballistic Cannon Flak Cannon Build | -11 -10 -10 -10 ------- Run | Yrd Mat Min Sub Slots Evolved . | . . . . Power . | . . . . Propulsion . | . . . . Utility . | . . . . Weapon . | . . . . Parts Attached 30 | 7 . 3 20 Power 5 | 1 . . 4 Engine 5 | 1 . . 4 Core . | . . . . Reactor . | . . . . Propulsion 10 | 2 . 1 7 Treads 4 | 2 . 1 1 Leg . | . . . . Wheel 6 | . . . 6 Hover . | . . . . Flight . | . . . . Utility 6 | 2 . . 4 Device 3 | 1 . . 2 Storage 1 | 1 . . . Processor 1 | . . . 1 Hackware . | . . . . Protection 1 | . . . 1 Artifact . | . . . . Weapon 9 | 2 . 2 5 Energy Gun 1 | 1 . . . Energy Cannon 2 | . . 1 1 Ballistic Gun 2 | 1 . . 1 Ballistic Cannon 4 | . . 1 3 Launcher . | . . . . Special Weapon . | . . . . Impact Weapon . | . . . . Slashing Weapon . | . . . . Piercing Weapon . | . . . . Special Melee Weapon . | . . . . Unidentified Prototypes . | . . . . Parts Lost 4 | . . . 4 Power 1 | . . . 1 Propulsion 2 | . . . 2 Utility 1 | . . . 1 Weapon . | . . . . Highest Loss Streak 2 | . . . 2 To Critical Strikes . | . . . . Average Backups 2 | 2 6 7 2 Power . | . 1 1 . Propulsion . | . 1 1 . Utility . | . 1 2 . Weapon 1 | . 2 2 1 Tool/Special . | . . . . Unused Backups 12 | . . 3 9 Power . | . . . . Propulsion . | . . . . Utility 5 | . . 1 4 Weapon 6 | . . 2 4 Tool/Special 1 | . . . 1 Average Slot Usage (%) 84 | . 99 100 83 Engine 13 | . 14 14 13 Treads 17 | . 27 28 16 Wheel 9 | . . . 10 Device 6 | . 14 14 5 Storage 1 | . 14 14 . Protection 7 | . . . 7 Energy Cannon 5 | . . 5 5 Ballistic Gun 2 | . 14 8 1 Ballistic Cannon 18 | . . 12 19 Peak Build Rating 31 | 7 7 12 31 Average Rating 17 | 4 6 10 18 On Entrance 6 | . 7 7 12 Avg Prop Armor Cover (%) 2 | . . . 2 Naked Turns . | . . . . Heaviest Build 36 | 12 12 21 36 Greatest Support 40 | 40 40 40 40 Greatest Overweight (x) 11 | . . . 11 Average Overweight (x) . | . . . . Largest Inventory Capacity 8 | 8 8 8 8 Average Capacity 5 | 7 8 8 5 Most Carried 8 | 4 8 8 8 Average Carried 5 | 2 6 7 5 Final Capacity 8 | 8 8 8 5 Final Carried 8 | 2 8 8 5 Class Distribution -------------------- 74% | Mutant 25% | Subdweller-Mutant Dominant Class ---------------- Mutant | -10/Materials Mutant | -10/Mines Mutant | -10/Subcaves Resources | -11 -10 -10 -10 ----------- Run | Yrd Mat Min Sub Matter Collected 1641 | 281 6 41 1313 Remotely . | . . . . Salvage Created 744 | 139 140 . 465 Parts 58 | 7 9 . 42 Haulers Intercepted . | . . . . Recyclers Shooed . | . . . . Parts Field Recycled . | . . . . Retrieved Matter . | . . . . Parts Self-Destructed 24 | . . . 24 Prevented . | . . . . Parts Restored . | . . . . Kills | -11 -10 -10 -10 ------- Run | Yrd Mat Min Sub Combat Hostiles Destroyed 24 | . 3 . 21 Guns 3 | . 3 . . Cannons 21 | . . . 21 Classes Destroyed 6 | 2 1 . 3 Tunneler 3 | 3 . . . Recycler 1 | 1 . . . Swarmer 7 | . . . 7 Grunt 3 | . 3 . . Cobbler 1 | . . . 1 Subdweller 14 | . . . 14 Best Kill Streak 4 | 3 3 . 4 Combat Bots Only 4 | . 3 . 4 Max Kills in Single Turn 1 | 1 1 . 1 Gunslinging . | . . . . Exploded . | . . . . Melee . | . . . . Uniques/NPCs Destroyed . | . . . . Combat | -11 -10 -10 -10 -------- Run | Yrd Mat Min Sub Hostile Shots Fired 132 | . 20 . 112 Missed 37 | . 6 . 31 Hits 95 | . 14 . 81 Projectile 95 | . 14 . 81 Critical Strikes 1 | . . . 1 Damage Taken 2316 | . 215 45 2056 Core 292 | . . 15 277 Absorbed by Shields . | . . . . Regen/Repaired (Parts) 54 | . 54 . . Core Remaining (%) 100 | 100 . . . Volleys Fired 136 | 11 7 . 118 Largest 2 | 2 2 . 2 Hottest 113 | 70 70 . 113 Shots Fired 245 | 22 14 . 209 Gun 48 | 22 14 . 12 Cannon 197 | . . . 197 Launcher . | . . . . Special . | . . . . Kinetic 153 | 11 7 . 135 Thermal 92 | 11 7 . 74 Explosive . | . . . . Electromagnetic . | . . . . Robot Hit Streak 13 | 8 5 . 13 Robot Miss Streak 7 | 2 3 . 7 Penetration Max . | . . . . Secondary Targets 1 | . 1 . . Max Gunslinging Chain 1 | . 1 . . Shots Hit Robots 126 | 13 10 . 103 Core Hits 57 | 6 6 . 45 Critical Kills . | . . . . Critical Parts Destroyed . | . . . . Critical Strikes 6 | . 1 . 5 Burn 1 | . 1 . . Blast 5 | . . . 5 Melee Attacks . | . . . . Impact . | . . . . Slashing . | . . . . Piercing . | . . . . Sneak Attacks . | . . . . Combat Hostiles . | . . . . Follow-up Attacks . | . . . . Damage Inflicted 2538 | 141 122 . 2275 Guns 396 | 141 122 . 133 Cannons 2142 | . . . 2142 Explosions . | . . . . Melee . | . . . . Ramming . | . . . . Kinetic 1570 | 43 58 . 1469 Thermal 968 | 98 64 . 806 Explosive . | . . . . Electromagnetic . | . . . . Impact . | . . . . Slashing . | . . . . Piercing . | . . . . Highest Corruption 5 | . 1 1 5 Average Corruption 1 | . 1 1 1 Corruption Purged 1 | . . . 1 Corruption Blocked . | . . . . Effects 23 | . 2 2 19 Message Errors 7 | . . 1 6 Matter Fused 7 | . . . 7 Heat Flow Errors 1 | . . . 1 Energy Discharges 7 | . 2 . 5 Alerts 1 | . . 1 . Overload Shots . | . . . . Overflow Damage 15 | . . . 15 Projectiles 15 | . . . 15 Explosions . | . . . . Melee . | . . . . Knockbacks 23 | . . . 23 Impact . | . . . . Kinetic 23 | . . . 23 Secondary . | . . . . Self-Inflicted Damage . | . . . . Shots . | . . . . Rammed . | . . . . Targets Rammed . | . . . . Kicked . | . . . . Crushed . | . . . . Highest Temperature 262 | 100 160 . 262 Average Temperature 65 | 36 80 . 102 Received Heat Transfer 228 | . 90 . 138 Siege Activations . | . . . . Martial Activations . | . . . . Shielding Activations . | . . . . Robots Disrupted . | . . . . Combat Hostiles . | . . . . Robots Corrupted . | . . . . Combat Hostiles . | . . . . Parts Fried . | . . . . Impact Corruptions . | . . . . Robots Melted . | . . . . Combat Hostiles . | . . . . Parts Melted 2 | . 1 . 1 Heat Transferred 1776 | 296 259 . 1221 Parts Sabotaged . | . . . . Parts Stolen . | . . . . Parts Stripped . | . . . . Power Chain Reactions . | . . . . Alert | -11 -10 -10 -10 ------- Run | Yrd Mat Min Sub Maximum Alert Level . | . . . . Low Security (%) 100 | 100 100 100 . Level 1 . | . . . . Level 2 . | . . . . Level 3 . | . . . . Level 4 . | . . . . Level 5 . | . . . . High Security . | . . . . Max Security . | . . . . Peak Influence 70 | 5 70 . . Initial . | . . . . Average 4 | 1 9 . . Influence Increases 274 | 20 74 . 180 Destroy 0b10 Robot/C 200 | . 60 . 140 Destroy 0b10 Robot/NC 20 | 20 . . . Destroy Leader 20 | . 10 . 10 Successful Hack 4 | . 4 . . Lose Combat Pursuer 30 | . . . 30 Influence Decreases 214 | 20 74 . 120 Time Decay 174 | 20 74 . 80 Lost Part 40 | . . . 40 Squads Dispatched 2 | . 1 1 . Investigation 2 | . 1 1 . Extermination . | . . . . Reinforcement . | . . . . Assault . | . . . . Garrison . | . . . . Intercept . | . . . . Searches Triggered . | . . . . Construction Impeded . | . . . . Haulers Reinforced . | . . . . Active Scanning Responses . | . . . . Cargo Convoy Interrupts . | . . . . Stealth | -11 -10 -10 -10 --------- Run | Yrd Mat Min Sub Distress Signals . | . . . . Communications Jammed . | . . . . Distress Signals . | . . . . Times Spotted 31 | . 6 . 25 Peak Tracking Total 5 | . 3 . 5 Tactical Retreats 1 | . . . 1 Traps | -11 -10 -10 -10 ------- Run | Yrd Mat Min Sub Traps Triggered 9 | . 3 1 5 Indirectly . | . . . . Trap Hack Attempts . | . . . . Triggered . | . . . . Disarmed . | . . . . Reprogrammed . | . . . . Reused . | . . . . Traps Extracted . | . . . . Installed . | . . . . Triggered . | . . . . Machines | -11 -10 -10 -10 ---------- Run | Yrd Mat Min Sub Machines Disabled 1 | . . . 1 Max in Single Turn 1 | . . . 1 Machines Repaired . | . . . . Machines Dismantled . | . . . . Machines Sabotaged . | . . . . Overloaded Fab Kills . | . . . . Hacking | -11 -10 -10 -10 --------- Run | Yrd Mat Min Sub Machines Accessed 5 | . 2 2 1 Terminals 1 | . 1 . . Fabricators . | . . . . Repair Stations 1 | . 1 . . Recycling Units . | . . . . Scanalyzers . | . . . . Garrison Access . | . . . . Total Hacks 10 | . 7 2 1 Successful 7 | . 4 2 1 Failed 3 | . 3 . . Catastrophic . | . . . . Database Lockouts . | . . . . Manual . | . . . . Terminals 5 | . 5 . . Fabricators . | . . . . Repair Stations 2 | . 2 . . Recycling Units . | . . . . Scanalyzers . | . . . . Garrison Access . | . . . . Terminal Hacks 5 | . 2 2 1 Robot Analysis 1 | . 1 . . Open Door 2 | . . 2 . Zone Layout 1 | . 1 . . Proto ID Catalog 1 | . . . 1 Fabricator Hacks . | . . . . Repair Station Hacks 2 | . 2 . . Scan Component 1 | . 1 . . Repair 1 | . 1 . . Recycling Unit Hacks . | . . . . Scanalyzer . | . . . . Garrison Access Hacks . | . . . . Unauthorized Hacks . | . . . . Terminals . | . . . . Fabricators . | . . . . Repair Stations . | . . . . Recycling Units . | . . . . Scanalyzers . | . . . . Garrison Access . | . . . . Data Cores Recovered . | . . . . Used . | . . . . Hacking Detections 1 | . 1 . . Full Trace Events . | . . . . Feedback Events . | . . . . Feedback Blocked . | . . . . Robot Schematics Acquired . | . . . . Robots Built . | . . . . Authchips . | . . . . Time . | . . . . Total Robot Build Rating . | . . . . Part Schematics Acquired . | . . . . Parts Built . | . . . . Authchips . | . . . . Time . | . . . . Total Part Build Rating . | . . . . Part Studies Acquired . | . . . . Parts Repaired 1 | . 1 . . Time 26 | . 26 . . Parts Recycled . | . . . . Recycled Matter . | . . . . Retrieved Matter . | . . . . Retrieved Components . | . . . . Parts Scanalyzed . | . . . . Part Schematics Acquired . | . . . . Parts Damaged . | . . . . Bothacking | -11 -10 -10 -10 ------------ Run | Yrd Mat Min Sub Used RIF Installer . | . . . . Robots Hacked . | . . . . Non-combat . | . . . . Combat . | . . . . Robot Hacks Applied . | . . . . Relay Couplers Released . | . . . . Fabnet Peak Effective % . | . . . . Robots Rewired . | . . . . Allies Hacked . | . . . . Hacks Repelled . | . . . . Allies | -11 -10 -10 -10 -------- Run | Yrd Mat Min Sub Total Allies . | . . . . Largest Group . | . . . . Highest-Rated Group . | . . . . Highest-Rated Ally . | . . . . Total Orders . | . . . . Ally Attacks . | . . . . Total Damage . | . . . . Kills . | . . . . Allies Corrupted . | . . . . Allies Melted . | . . . . Intel | -11 -10 -10 -10 ------- Run | Yrd Mat Min Sub Active Infowar (turns) 1383 | 3 496 384 500 Seismic 1383 | 3 496 384 500 Robot Analysis Total 1 | . 1 . . Derelict Logs Recovered 3 | . . 1 2 Drone Launches . | . . . . Drone Recoveries . | . . . . Exploration | -11 -10 -10 -10 ------------- Run | Yrd Mat Min Sub Turns Passed 10391 | 117 496 384 9394 Spaces Moved 4810 | 61 186 203 4360 Core 74 | 24 . . 50 Treads 3688 | 37 186 203 3262 Legs . | . . . . Wheels 1048 | . . . 1048 Hover . | . . . . Flight . | . . . . Fastest Speed 50 | 50 160 160 110 Average Speed 180 | 116 160 160 183 Slowest Speed 600 | 160 160 160 600 Overloaded Moves . | . . . . Propulsion Burnouts . | . . . . Robots Hopped . | . . . . Potential Cave-ins 4 | . . . 4 Cave-ins Triggered 2 | . . . 2 Exploration Rate (%) 46 | 3 44 44 96 Regions Visited 3 Branch Regions 2 Pre-discovered Areas 1 | . . 1 . Known Exits Taken . | . . . . Unknown Exits Taken 3 | 1 1 1 . Scrap Searched 11 | . . . 11 Spaces Dug 9 | . . . 9 Terrain Destroyed 12 | . . . 12 Melee . | . . . . Projectile 12 | . . . 12 AOE . | . . . . Terrain Rammed . | . . . . Walls Destroyed . | . . . . Machines Disabled . | . . . . Actions | -11 -10 -10 -10 --------- Run | Yrd Mat Min Sub Total 6259 | 87 372 264 5536 Wait 1191 | . 172 49 970 Move 4806 | 60 185 202 4359 Hop . | . . . . Pick Up 31 | 9 7 4 11 Fast Attach 18 | . . 2 16 Attach 10 | 7 1 . 2 Detach . | . . . . Swap 7 | . . 1 6 Drop 40 | . . 6 34 Fire 136 | 11 7 . 118 Melee . | . . . . Ram . | . . . . Kick . | . . . . Crush . | . . . . Escape Stasis 1 | . . . 1 Rewire . | . . . . Trap . | . . . . Miscellaneous 19 | . . . 19 Route ------- -11/Scrapyard -10/Materials (discovered 3 exits: [*Mat x2] / *Min) -10/Mines (discovered 2 exits: [*Mat] / *Sub) -10/Subcaves (discovered 3 exits: *Mat x2 / [*Scr]) History --------- Turn | Location | Event 8 | -11/Scrapyard | Discovered new exit (range 15) 118 | -11/Scrapyard | Entered Materials 260 | -10/Materials | Discovered new exit (range 6) 301 | -10/Materials | Repaired Lgt. Treads 323 | -10/Materials | Build established: Mutant 393 | -10/Materials | Discovered new exit (range 10) 436 | -10/Materials | Discovered new exit (range 5) 614 | -10/Materials | Entered Mines 616 | -10/Mines | Met a Derelict bent on vengeance 623 | -10/Mines | Met a Derelict who couldn't figure out how to use a Trap Extractor 747 | -10/Mines | Discovered new exit (range 15) 822 | -10/Mines | Met a Derelict shopkeep closing up shop 858 | -10/Mines | Learned location of Zion (-7) 990 | -10/Mines | Discovered new exit (range 6) 998 | -10/Mines | Entered Subcaves 999 | -10/Subcaves | Approached by a straggling Scientist 1002 | -10/Subcaves | Identified exit to Materials 1344 | -10/Subcaves | Shifting Twisted Machinery released Sub. Shrapnel Launcher 1360 | -10/Subcaves | Shifting Twisted Machinery released Sub. Monowheel 1669 | -10/Subcaves | Learned Materials garrison access intel 1694 | -10/Subcaves | Scientist uncovered a shortcut to Scraptown 1964 | -10/Subcaves | Shifting Twisted Machinery released Flamer 1965 | -10/Subcaves | Shifting Twisted Machinery released Hvy. Riot Gun 2015 | -10/Subcaves | Ambushed by Subdweller buried in earth 2028 | -10/Subcaves | Core integrity fell below 50% 2287 | -10/Subcaves | Ambushed by Subdweller buried in earth 2650 | -10/Subcaves | Discovered exit to Materials (range 8) 2688 | -10/Subcaves | Disturbed a concealed Subdweller 2828 | -10/Subcaves | Shifting Twisted Machinery released Mak. System Restoration Module 3121 | -10/Subcaves | Shifting Twisted Machinery released Sub. Laser 3524 | -10/Subcaves | A swath of the cavern ceiling suddenly collapsed 4111 | -10/Subcaves | Visited 4L-MR0's lab 4250 | -10/Subcaves | Found Prototype Special Melee Weapon 4707 | -10/Subcaves | Build established: Subdweller-Mutant 6093 | -10/Subcaves | Ambushed by angry Subdweller bent on revenge 6413 | -10/Subcaves | Build established: Mutant 9419 | -10/Subcaves | Build established: Subdweller-Mutant 10076 | -10/Subcaves | Found Rainbow Chip 10078 | -10/Subcaves | Attached Rainbow Chip, gained temporary slots: Power, Propulsion, Utility, Weapon 10382 | -10/Subcaves | Build established: Mutant 10390 | -10/Subcaves | Crushed by falling debris 10393 | -10/Subcaves | Crushed by falling debris 10393 | -10/Subcaves | Smashed by cave-in Last Messages --------------- Procsplitter VL-GR5's Exoskeleton "Deathgrip" Powered Cannon 10076_ Dropped Scrap Shield. 10076_ Acquired Rainbow Chip. 10078_ Core temporarily expanded with Power slot. 10078_ Core temporarily expanded with Propulsion slot. 10078_ Core temporarily expanded with Utility slot. 10078_ Core temporarily expanded with Weapon slot. 10388_ Acquired 9 matter. 10390_ The unstable cave ceiling collapses. 10390_ Crushed by falling debris. 10390_ Rainbow Chip destroyed. 10390_ System corrupted by crushing effect (+5). 10391_ Temporary Power slot lost. 10391_ Temporary Propulsion slot lost. 10391_ Temporary Utility slot lost. 10391_ Temporary Weapon slot lost. 10393_ The unstable cave ceiling collapses. 10393_ Crushed by falling debris. Map ----- +----------------------------------------------------+ | ??????????????????????????????????????###???# #? | | ????????????????????????????????????????????# ##? | | ????????????????????????????????????????????####?? | | ?????????????????????????????????????????????????? | | ?????????????????????????????????????????????????? | | ?????????????????????????????????????????????????? | | ?????????????????????????????????????????????????? | | ?????????????????????????????????????????????????? | | ?????????????????????????????????????????????????? | | ?????????????????????????????????????????????????? | | ?????????????????????????????????????????????????? | | ?????????????????????????????????????????????????? | | ?????????????????????????????????????????????????? | | ?????????????????????????????????????????????????? | | ?????????????????????????????????????????????????? | | ?????????????????????????????????????????????????? | | ?????????????????????????????????????????????????? | | ?????????????????????????????????????????????????? | | ?????????????????????????????######???????###??### | | ?????????????????????????##### #??????## #### | | ????????????????????????##"" #["| #?????## # | | ?????????????????????####"""""""" #????## | | | ?????????????????????# "" #????## | | ?????????????????????## ## " !###### | | ??????????????????????##### ## | | ???????????????????????##@###"### "" ## ## | | ?????????????????????######## #?## ####### | | ?????????????????????# #?# #??# #?????## | | ?????????????????????### #?# #??## #####??????? | | ?????????????????????## #### ##???#####??????????? | | ?????????????????????# ### ##???????????????????? | | ?????????????????????# ##????????????????????? | | ?????????????????####### #?????????????????????? | | ?????????????????# =#### #?????????????????????? | | ????????????????## ## ######?????????????????? | | ????????????????# ### # # ##????????????????? | | ????????????????## ### & #????????????????? | | ????????????????# ### #????????????????? | | ????????????????# ### ### #????????????????? | | ????????????????# ## ! ### ##???????????????? | | ????????????????## # #???????????????? | | ?????????????????# ##???????????????? | | ????????????????## #????????????????? | | ????????????????# ###?????????####?? | | ????????????????# ###??????## #?? | | ???????????????## #??##### ##? | | ??????????????## #### ##?## #? | | ??????????????# ## #?# #?## #####? | | ??????????????##### ## ### ### #### ##????? | | ??????????????????##### ###### # # ##????? | +----------------------------------------------------+ Best States ------------- Heat Dissipation 25 Energy Generation 15 Energy Capacity 200 Matter Stores 300 Matter Capacity 300 Sight Range 16 Terrain Scan Density 10 Armor Coverage 800 Evasion (%) 50 Recoil Reduction 2 Item Schematics ----------------- None Robot Schematics ------------------ None Fabricated ------------ Nothing Repaired ---------- Lgt. Treads | 61% | -10/Materials Studied --------- None Alien Tech Used ----------------- None Achievements -------------- None Challenges ------------ None Game ------ Seed HeartAccelerationRay Manual? 0 Play Time 00:27:54 Cumulative 828.2 hours Start 2026.04.30 @ 14:10:04 End 2026.05.01 @ 01:49:13 Sessions 2 Manual Loads 0 Difficulty Rogue Special Mode None Game No. 994 Rogue 994 Adventurer 0 Explorer 0 Win Type - Total 33 Types 16/1/6/3/2/0/2/2/1/0 Lore% 97 Gallery% 96 Achievement% 88 Wizard Run 0 Options --------- Layout 0 ASCII 0 Keyboard 0 Movement Mouse Keybinds 0 Fullscreen 1 Font 24/Terminus Map View 76x50 Zoom Use 0% Tactical HUD 1 Map Filters NONE Filters NONE Steam 1 RUN: 3045ba58-5662-4a11-b268-2ab7fc47a284